{"text_format":"1","workbook":"xlsx","n_sheets":7,"sheets":["1. Anleitung","2. Personalien","3. Betriebe","4. Umsatzrückgang","5. Kostennachweis","6. Belegliste","MasterData"],"not_rendered":{"charts":0,"images":1,"macros":1,"external_links":1,"defined_names":15,"comments":0,"pivot_tables":0},"unopened":[],"bounds":{"document_bytes":16777216,"sheet_cells":100000,"rows_first":2000,"rows_last":500,"rows_between":2000,"halvings":0,"cell_chars":16384,"cell_head_chars":4096},"cells_cut":0,"cells_raw":0,"read":"whole","date_system":"1900"}

{"sheet":"1. Anleitung","index":0,"n_rows":20,"n_cols":3,"rows_kept":20,"cut":false,"hidden":false,"merged":[]}
[]
[null,null,"Härtefallprogramm Kanton Zürich "]
[null,null,"Zuteilungsrunde 4b - Gesuchformular"]
[]
[]
[]
[null,null,"1. Anleitung zum Ausfüllen und Einreichen des Gesuchs"]
[null,null,"Es sind insgesamt 4 Tabellenblätter auszufüllen (vgl. Register in grüner Farbe → «2. Personalien», «3. Betriebe», «4. Umsatzrückgang» und «5. Kostennachweis»)."]
[null,null,"Die einzelnen Tabellenblätter sind geschützt, bitte geben Sie nur in den hellgründen Zellen Daten ein."]
[null,null,"Daten in nicht dafür vorgesehenen Zellen und eigenhändig eingefügten Tabellenblättern werden nicht akzeptiert."]
[null,null,"Das ausgefüllte Formular ist sowohl als Excel-Datei als auch als PDF (gesamte Arbeitsmappe) einzureichen."]
[null,null,"Gewisse Daten-Eingaben bzw. Daten sind von Ihnen selbständig in die separate Gesuchzusammenfassung zu übertragen. Diese Felder sind im Excel orange umrandet."]
[null,null,"Bitte achten Sie darauf, dass Zahlen im eingereichten Excel und in der Gesuchzusammenfassung übereinstimmen."]
[null,null,"Die aktuell gültige Belegliste ist auf zh.ch/haertefall einsehbar."]
[null,null,"Web-Link"]
[null,null,"Fragen zur Gesucheingabe richten Sie bitte an haertefallprogramm@fdfv.zh.ch."]
[null,null,"E-Mail-Link"]
[null,null,"Das ausgefüllte Gesuchformular (als .xlsm und .pdf), die unterschriebene Gesuchzusammenfassung / Selbstdeklaration und alle Belege reichen Sie via E-Mail auf haertefallprogramm@fdfv.zh.ch mit Betreff «Gesuch Härtefallprogramm Runde 4b – [Name Unternehmen]» ein."]
[null,null,"Bitte listen Sie in Ihrem E-Mail alle eingereichten Belege auf, damit sichergestellt werden kann, dass alle Belege übermittelt wurden."]
[null,null,"Falls aufgrund der Datenmenge (Dateigrössen) es nötig sein sollte, können Sie das Gesuch in zwei bis drei separaten E-Mails einreichen."]

{"sheet":"2. Personalien","index":1,"n_rows":43,"n_cols":3,"rows_kept":43,"cut":false,"hidden":false,"merged":[[42,2,42,5],[40,2,40,5],[41,2,41,5],[34,2,34,5],[35,2,35,5],[36,2,36,5],[37,2,37,5],[20,2,20,5],[21,2,21,5],[22,2,22,5],[23,2,23,5],[39,2,39,5],[31,2,31,5],[32,2,32,5],[26,2,26,5],[38,2,38,5],[33,2,33,5],[27,2,27,5],[28,2,28,5],[29,2,29,5],[30,2,30,5],[13,2,13,5],[14,2,14,5],[17,2,17,5],[19,2,19,5],[18,2,18,5],[8,2,8,5],[9,2,9,5],[10,2,10,5],[11,2,11,5],[12,2,12,5]]}
[]
[null,"2. Personalien und Informationen zum gesuchstellenden Unternehmen"]
[]
[null,"Anleitung zu den markierten Feldern/Zellen:"]
[null,"Grün markierte Felder","→ Bitte ausfüllen"]
[null,"Grün markierte Felder mit oranger Umrahmung","→ Bitte ausfüllen und Information in die separate Gesuchzusammenfassung übertragen"]
[]
[null,"Gesuchstellende Person 1"]
[null,"Anrede"]
[null,"Vorname"]
[null,"Name"]
[null,"Geburtsdatum"]
[null,"E-Mail (geschäftlich)"]
[null,"Telefon-Nr. (optional)"]
[null,"Funktion im gesuchstellenden Unternehmen"]
[]
[null,"Gesuchstellende Person 2 (bei Kollektivunterschrift zu zweien)"]
[null,"Anrede"]
[null,"Vorname"]
[null,"Name"]
[null,"Geburtsdatum"]
[null,"E-Mail (geschäftlich)"]
[null,"Telefon-Nr. (optional)"]
[null,"Funktion im gesuchstellenden Unternehmen"]
[]
[null,"Unternehmen"]
[null,"Gründungsdatum"]
[null,"Datum Eintrag ins Handelsregister"]
[null,"Unternehmens-Identifikationsnummer (UID)"]
[null,"Firmenname (wie Handelsregistereintrag)"]
[null,"c/o- oder Namenszusatz (optional)"]
[null,"Strasse, Nr."]
[null,"PLZ und Ort"]
[null,"Rechtsform"]
[null,"Sektorisierung"]
[null,"Webseite"]
[null,"Anzahl festangestellte Personaleinheiten in der Schweiz zum Zeitpunkt der Gesucheingabe"]
[null,"Beteiligungsquote (in %) von Bund, Kantone(n) und Gemeinden mit mehr als 12 000 Einwohnern am Unternehmen?"]
[null,"Geschäftssitz am 1. Oktober 2020 (PLZ, Ort)"]
[null,"Geschäftssitz zum Zeitpunkt der Gesucheinreichung (PLZ, Ort)"]
[null,"IBAN Geschäftskonto"]
[null,"Name der Geschäftsbank"]
[null,"PLZ, Ort der Geschäftsbank"]

{"sheet":"3. Betriebe","index":2,"n_rows":53,"n_cols":8,"rows_kept":53,"cut":false,"hidden":false,"merged":[]}
[]
[null,"3. Anspruchskriterien gemäss Covid-19-ZBG"]
[]
[null,null,"Anleitung zu den markierten Feldern/Zellen:"]
[null,null,"Grün markierte Felder","→ Bitte ausfüllen"]
[]
[null,"3.1. Betriebe innerhalb und ausserhalb Kanton Zürich (§ 2 Abs. 1 lit. b Covid-19-ZBG)"]
[]
[null,"Betriebe innerhalb Kanton Zürich"]
[null,"Nr.","Name Betrieb","Strasse Nr.","PLZ Ort","Art des Betriebs","Geschäftsführer/-in","UID (falls vorhanden)"]
[null,1]
[null,2]
[null,3]
[null,4]
[null,5]
[null,6]
[null,7]
[null,8]
[null,9]
[null,10]
[null,11]
[null,12]
[null,13]
[null,14]
[null,15]
[null,16]
[null,17]
[null,18]
[null,19]
[null,20]
[]
[null,"Betriebe ausserhalb Kanton Zürich"]
[null,"Nr.","Name Betrieb","Strasse Nr.","PLZ Ort","Art des Betriebs","Geschäftsführer/-in","UID (falls vorhanden)"]
[null,1]
[null,2]
[null,3]
[null,4]
[null,5]
[null,6]
[null,7]
[null,8]
[null,9]
[null,10]
[null,11]
[null,12]
[null,13]
[null,14]
[null,15]
[null,16]
[null,17]
[null,18]
[null,19]
[null,20]

{"sheet":"4. Umsatzrückgang","index":3,"n_rows":76,"n_cols":18,"rows_kept":76,"cut":false,"hidden":false,"merged":[[63,6,63,8],[65,6,65,8],[72,6,72,8],[64,2,64,5],[65,2,65,5],[66,2,66,5],[72,2,72,5],[63,2,63,5],[62,6,62,8],[44,2,44,5],[38,11,38,14],[31,11,31,14],[36,11,36,14],[37,2,37,5],[37,11,37,14],[31,2,31,5],[47,2,47,8],[58,2,58,5],[59,2,59,5],[58,6,58,8],[59,6,59,8],[62,2,62,5],[27,11,27,14],[28,11,28,14],[29,11,29,14],[41,11,41,14],[43,2,43,5],[11,2,11,5],[12,2,12,5],[13,2,13,5],[41,2,41,5],[42,2,42,5],[29,2,29,5],[20,2,20,5],[21,2,21,5],[22,2,22,5],[23,2,23,5],[15,2,15,5],[24,2,24,5],[28,2,28,5],[38,2,38,5],[36,2,36,5],[27,2,27,5],[20,11,20,14],[21,11,21,14],[22,11,22,14],[23,11,23,14],[24,11,24,14],[63,15,63,17],[42,11,42,14],[43,11,43,14],[44,11,44,14],[63,11,63,14],[47,11,47,17],[58,11,58,14],[59,11,59,14],[58,15,58,17],[59,15,59,17],[62,11,62,14],[62,15,62,17],[74,2,74,5],[71,6,71,8],[64,6,64,8],[71,2,71,5],[64,15,64,17],[66,15,66,17],[65,15,65,17],[65,11,65,14],[66,11,66,14],[64,11,64,14],[69,2,69,5],[69,6,69,8],[70,2,70,5],[66,6,66,8],[70,6,70,8],[74,11,74,14]]}
[]
[null,null,"4. Umsatzrückgang"]
[]
[null,null,"Anleitung zu den markierten Feldern/Zellen:"]
[null,null,"Grün markierte Felder","→ Bitte ausfüllen"]
[null,null,"Blau markierte Felder","→ Berechnetes Feld/Zelle → NICHT ausfüllen"]
[null,null,"Orange Umrahmung","→ Daten in den orange umrahmten Felder in die separate Gesuchzusammenfassung übertragen"]
[]
[null,null,"Hinweis: Alle Umsatzzahlen sind ohne MWST und nach Erlösminderungen anzugeben"]
[]
[null,null,"Durchschnittlicher Umsatz 2018/2019 Gesamtunternehmen"]
[null,null,"Jahresumsatz 2018 Gesamtunternehmen (Fr.)"]
[null,null,"Jahresumsatz 2019 Gesamtunternehmen (Fr.)"]
[null,null,"Berechneter durchschnittlicher Jahresumsatz 2018/2019 Gesamtunternehmen (Fr.)",null,null,null,{"$f":"SUM(G12:G13)/2","v":0}]
[]
[null,null,"Welchen Teil Ihres Unternehmens möchten Sie für Härtefallhilfen anmelden? Bitte auswählen.",null,null,null,"Gesamtunternehmen"]
[]
[]
[null,null,"Angemeldeter Umsatz"]
[null,null,{"$f":"IF(DropdownSparte=MasterData!D3,MasterData!D3,\"Sparte 1:\")","v":"Gesamtunternehmen"},null,null,null,null,null,null,null,null,"Sparte 2:"]
[null,null,{"$f":"IF(DropdownSparte=MasterData!D3,\"Firmenname wie im Handelsregistereintrag\",\"Bezeichnung Sparte 1\")","v":"Firmenname wie im Handelsregistereintrag"},null,null,null,null,null,null,null,null,"Bezeichnung Sparte 2"]
[null,null,{"$f":"IF(DropdownSparte=MasterData!D3,MasterData!B24,MasterData!B25)","v":"Musste Ihr Gesamtunternehmen aufgrund behördlicher Massnahmen zur Eindämmung der Covid-19-Epidemie den Betrieb zwischen dem 1. November 2020 und dem 30. Juni 2021 für insgesamt mindestens 40 Tage schliessen?"},null,null,null,"Ja",null,null,null,null,"Musste die Sparte 2 aufgrund behördlicher Massnahmen zur Eindämmung der Covid-19-Epidemie den Betrieb zwischen dem 1. November 2020 und dem 30. Juni 2021 für insgesamt mindestens 40 Tage schliessen?",null,null,null,"Ja"]
[null,null,"Anzahl Kalendertage behördliche Schliessung?",null,null,null,null,null,null,null,null,"Anzahl Kalendertage behördliche Schliessung?"]
[null,null,"Welchen Fixkostenanteil machen Sie geltend?",null,null,null,0.25,null,null,null,null,"Welchen Fixkostenanteil machen Sie geltend?",null,null,null,0.25]
[null,null,"Bitte begründen Sie, warum der ausgewählte Fixkostenanteil grösser als 8% zutrifft",null,null,null,null,null,null,null,null,"Bitte begründen Sie, warum der ausgewählte Fixkostenanteil grösser als 8% zutrifft"]
[]
[null,null,"Durchschnittlicher Umsatz 2018/2019",null,null,null,null,null,null,null,null,"Durchschnittlicher Umsatz 2018/2019"]
[null,null,{"$f":"IF(DropdownSparte=MasterData!D3,MasterData!C24,MasterData!C25)","v":"Angemeldeter Jahresumsatz 2018 - Gesamtunternehmen (Fr.)"},null,null,null,null,null,null,null,null,"Angemeldeter Jahresumsatz 2018 - Sparte 2 (Fr.)"]
[null,null,{"$f":"IF(DropdownSparte=MasterData!D3,MasterData!D24,MasterData!D25)","v":"Angemeldeter Jahresumsatz 2019 - Gesamtunternehmen (Fr.)"},null,null,null,null,null,null,null,null,"Angemeldeter Jahresumsatz 2019 - Sparte 2 (Fr.)"]
[null,null,{"$f":"IF(DropdownSparte=MasterData!D3,MasterData!E24,MasterData!E25)","v":"Durchschnittlicher angemeldeter Jahresumsatz 2018/2019 - Gesamtunternehmen (Fr.)"},null,null,null,{"$f":"SUM(G28:G29)/2","v":0},null,null,null,null,"Durchschnittlicher angemeldeter Jahresumsatz 2018/2019 - Sparte 2 (Fr.)",null,null,null,{"$f":"SUM(P28:P29)/2","v":0}]
[]
[null,null,"Wie machen Sie Ihren Umsatzrückgang über 12 Monate geltend?",null,null,null,"K - Kalenderjahr 2020",null,null,null,null,"Wie machen Sie Ihren Umsatzrückgang über 12 Monate geltend?",null,null,null,{"$f":"DD_URück1","v":"K - Kalenderjahr 2020"}]
[]
[null,null,"Umsatz(rückgang) 12 Monate",null,null,null,null,null,null,null,null,"Umsatz(rückgang) 12 Monate"]
[]
[null,null,"Kalenderjahr 2020",null,null,null,null,null,null,null,null,"Kalenderjahr 2020"]
[null,null,{"$f":"IF(DropdownSparte=MasterData!D3,MasterData!F24,MasterData!F25)","v":"Umsatz Kalenderjahr 2020 - Gesamtunternehmen (Fr.)"},null,null,null,null,null,null,null,null,"Umsatz Kalenderjahr 2020 - Sparte 2 (in Fr.)"]
[null,null,"Umsatzrückgang Kalenderjahr 2020",null,null,null,{"$f":"IF(DD_URück1=MasterData!$E$4,0,G37-G30)","v":0},null,null,null,null,"Umsatzrückgang Kalenderjahr 2020",null,null,null,{"$f":"IF(DD_URück1=MasterData!$E$4,0,P37-P30)","v":0}]
[null,null,"Umsatzrückgang Kalenderjahr 2020 (%)",null,null,null,{"$f":"IFERROR(G38/G30,0)","v":0},{"$f":"IF(AND(G22=\"Nein\",G39>-40%),\"Umsatzrückgang zu gering!\",\"\")","v":""},null,null,null,"Umsatzrückgang Kalenderjahr 2020 (%)",null,null,null,{"$f":"IFERROR(P38/P30,0)","v":0},{"$f":"IF(AND(P22=\"Nein\",P39>-40%),\"Umsatzrückgang zu gering!\",\"\")","v":""}]
[]
[null,null,"Spätere 12 Monats-Periode",null,null,null,null,null,null,null,null,"Spätere 12 Monats-Periode"]
[null,null,"Für welche spätere 12 Monats-Periode machen Sie den Umsatzrückgang geltend?",null,null,null,"Februar 2020 - Januar 2021",null,null,null,null,"Für welche spätere 12 Monats-Periode machen Sie den Umsatzrückgang geltend?",null,null,null,"Februar 2020 - Januar 2021"]
[null,null,{"$f":"IF(DropdownSparte=MasterData!D3,MasterData!G24,MasterData!G25)","v":"Umsatz spätere 12 Monats-Periode - Gesamtunternehmen (Fr.)"},null,null,null,null,null,null,null,null,"Umsatz spätere 12 Monats-Periode - Sparte 2 (in Fr.)"]
[null,null,"Umsatzrückgang spätere 12 Monats-Periode",null,null,null,{"$f":"IF(DD_URück1=MasterData!$E$3,0,G43-G30)","v":0},null,null,null,null,"Umsatzrückgang spätere 12 Monats-Periode",null,null,null,{"$f":"IF(DD_URück1=MasterData!$E$3,0,P43-P30)","v":0}]
[null,null,"Umsatzrückgang spätere 12 Monats-Periode (%)",null,null,null,{"$f":"IFERROR(G44/G30,0)","v":0},{"$f":"IF(AND(G22=\"Nein\",G45>-40%),\"Umsatzrückgang zu gering!\",\"\")","v":""},null,null,null,"Umsatzrückgang spätere 12 Monats-Periode (%)",null,null,null,{"$f":"IFERROR(P44/P30,0)","v":0},{"$f":"IF(AND(P22=\"Nein\",P45>-40%),\"Umsatzrückgang zu gering!\",\"\")","v":""}]
[]
[null,null,"Zusätzlicher Umsatzrückgang Januar bis Juni 2021 ",null,null,null,null,null,null,null,null,"Zusätzlicher Umsatzrückgang Januar bis Juni 2021 "]
[null,null,"Alle in der Tabelle geltend gemachten Monatsumsätze 2018, 2019 und 2021 müssen mit\nunterschriebenen monatlichen Erfolgsrechnungen belegt werden können.",null,null,null,null,null,null,null,null,"Alle in der Tabelle geltend gemachten Monatsumsätze 2018, 2019 und 2021 müssen mit\nunterschriebenen monatlichen Erfolgsrechnungen belegt werden können."]
[null,null,"Monatsumsatz (Fr.)",2018,2019,"Ø 2018/2019",2021,"U-Rück 2021","U-Rück 2021 (%)",null,null,"Monatsumsatz (Fr.)",2018,2019,"Ø 2018/2019",2021,"U-Rück 2021","U-Rück 2021 (%)"]
[null,{"$f":"IF(DD_URück1=MasterData!$E$3,\"No\",IF(OR($G$42=MasterData!$B$9,$G$42=MasterData!$B$10,$G$42=MasterData!$B$11,$G$42=MasterData!$B$12,$G$42=MasterData!$B$13,$G$42=MasterData!$B$14),\"Yes\",\"No\"))","v":"No"},"Januar",null,null,{"$f":"IF(DD_URück1=MasterData!$E$3,IF(OR(D50=0,E50=0),0,SUM(D50:E50)/2),IF(OR($G$42=MasterData!$B$9,$G$42=MasterData!$B$10,$G$42=MasterData!$B$11,$G$42=MasterData!$B$12,$G$42=MasterData!$B$13,$G$42=MasterData!$B$14),0,IF(OR(D50=0,E50=0),0,SUM(D50:E50)/2)))","v":0},null,{"$f":"IF(G50=\"\",\"\",IF(G50-F50>=0,0,G50-F50))","v":""},{"$f":"IFERROR(H50/F50,0)","v":0},null,{"$f":"IF(DD_URück2=MasterData!$E$3,\"No\",IF(OR($P$42=MasterData!$B$9,$P$42=MasterData!$B$10,$P$42=MasterData!$B$11,$P$42=MasterData!$B$12,$P$42=MasterData!$B$13,$P$42=MasterData!$B$14),\"Yes\",\"No\"))","v":"No"},"Januar",null,null,{"$f":"IF(DD_URück2=MasterData!$E$3,IF(OR(M50=0,N50=0),0,SUM(M50:N50)/2),IF(OR($P$42=MasterData!$B$9,$P$42=MasterData!$B$10,$P$42=MasterData!$B$11,$P$42=MasterData!$B$12,$P$42=MasterData!$B$13,$P$42=MasterData!$B$14),0,IF(OR(M50=0,N50=0),0,SUM(M50:N50)/2)))","v":0},null,{"$f":"IF(P50=\"\",\"\",IF(P50-O50>=0,0,P50-O50))","v":""},{"$f":"IFERROR(Q50/O50,0)","v":0}]
[null,{"$f":"IF(DD_URück1=MasterData!$E$3,\"No\",IF(OR($G$42=MasterData!$B$10,$G$42=MasterData!$B$11,$G$42=MasterData!$B$12,$G$42=MasterData!$B$13,$G$42=MasterData!$B$14),\"Yes\",\"No\"))","v":"No"},"Februar",null,null,{"$f":"IF(DD_URück1=MasterData!$E$3,IF(OR(D51=0,E51=0),0,SUM(D51:E51)/2),IF(OR($G$42=MasterData!$B$10,$G$42=MasterData!$B$11,$G$42=MasterData!$B$12,$G$42=MasterData!$B$13,$G$42=MasterData!$B$14),0,IF(OR(D51=0,E51=0),0,SUM(D51:E51)/2)))","v":0},null,{"$f":"IF(G51=\"\",\"\",IF(G51-F51>=0,0,G51-F51))","v":""},0,null,{"$f":"IF(DD_URück2=MasterData!$E$3,\"No\",IF(OR($P$42=MasterData!$B$10,$P$42=MasterData!$B$11,$P$42=MasterData!$B$12,$P$42=MasterData!$B$13,$P$42=MasterData!$B$14),\"Yes\",\"No\"))","v":"No"},"Februar",null,null,{"$f":"IF(DD_URück2=MasterData!$E$3,IF(OR(M51=0,N51=0),0,SUM(M51:N51)/2),IF(OR($P$42=MasterData!$B$10,$P$42=MasterData!$B$11,$P$42=MasterData!$B$12,$P$42=MasterData!$B$13,$P$42=MasterData!$B$14),0,IF(OR(M51=0,N51=0),0,SUM(M51:N51)/2)))","v":0},null,{"$f":"IF(P51=\"\",\"\",IF(P51-O51>=0,0,P51-O51))","v":""},0]
[null,{"$f":"IF(DD_URück1=MasterData!$E$3,\"No\",IF(OR($G$42=MasterData!$B$11,$G$42=MasterData!$B$12,$G$42=MasterData!$B$13,$G$42=MasterData!$B$14),\"Yes\",\"No\"))","v":"No"},"März",null,null,{"$f":"IF(DD_URück1=MasterData!$E$3,IF(OR(D52=0,E52=0),0,SUM(D52:E52)/2),IF(OR($G$42=MasterData!$B$11,$G$42=MasterData!$B$12,$G$42=MasterData!$B$13,$G$42=MasterData!$B$14),0,IF(OR(D52=0,E52=0),0,SUM(D52:E52)/2)))","v":0},null,"",0,null,{"$f":"IF(DD_URück2=MasterData!$E$3,\"No\",IF(OR($P$42=MasterData!$B$11,$P$42=MasterData!$B$12,$P$42=MasterData!$B$13,$P$42=MasterData!$B$14),\"Yes\",\"No\"))","v":"No"},"März",null,null,{"$f":"IF(DD_URück1=MasterData!$E$3,IF(OR(M52=0,N52=0),0,SUM(M52:N52)/2),IF(OR($P$42=MasterData!$B$11,$P$42=MasterData!$B$12,$P$42=MasterData!$B$13,$P$42=MasterData!$B$14),0,IF(OR(M52=0,N52=0),0,SUM(M52:N52)/2)))","v":0},null,"",0]
[null,{"$f":"IF(DD_URück1=MasterData!$E$3,\"No\",IF(OR($G$42=MasterData!$B$12,$G$42=MasterData!$B$13,$G$42=MasterData!$B$14),\"Yes\",\"No\"))","v":"No"},"April",null,null,{"$f":"IF(DD_URück1=MasterData!$E$3,IF(OR(D53=0,E53=0),0,SUM(D53:E53)/2),IF(OR($G$42=MasterData!$B$12,$G$42=MasterData!$B$13,$G$42=MasterData!$B$14),0,IF(OR(D53=0,E53=0),0,SUM(D53:E53)/2)))","v":0},null,"",{"$f":"IFERROR(H53/F53,0)","v":0},null,{"$f":"IF(DD_URück2=MasterData!$E$3,\"No\",IF(OR($P$42=MasterData!$B$12,$P$42=MasterData!$B$13,$P$42=MasterData!$B$14),\"Yes\",\"No\"))","v":"No"},"April",null,null,{"$f":"IF(DD_URück2=MasterData!$E$3,IF(OR(M53=0,N53=0),0,SUM(M53:N53)/2),IF(OR($P$42=MasterData!$B$12,$P$42=MasterData!$B$13,$P$42=MasterData!$B$14),0,IF(OR(M53=0,N53=0),0,SUM(M53:N53)/2)))","v":0},null,"",{"$f":"IFERROR(Q53/O53,0)","v":0}]
[null,{"$f":"IF(DD_URück1=MasterData!$E$3,\"No\",IF(OR($G$42=MasterData!$B$13,$G$42=MasterData!$B$14),\"Yes\",\"No\"))","v":"No"},"Mai",null,null,{"$f":"IF(DD_URück1=MasterData!$E$3,IF(OR(D54=0,E54=0),0,SUM(D54:E54)/2),IF(OR($G$42=MasterData!$B$13,$G$42=MasterData!$B$14),0,IF(OR(D54=0,E54=0),0,SUM(D54:E54)/2)))","v":0},null,"",0,null,{"$f":"IF(DD_URück2=MasterData!$E$3,\"No\",IF(OR($P$42=MasterData!$B$13,$P$42=MasterData!$B$14),\"Yes\",\"No\"))","v":"No"},"Mai",null,null,{"$f":"IF(DD_URück2=MasterData!$E$3,IF(OR(M54=0,N54=0),0,SUM(M54:N54)/2),IF(OR($P$42=MasterData!$B$13,$P$42=MasterData!$B$14),0,IF(OR(M54=0,N54=0),0,SUM(M54:N54)/2)))","v":0},null,"",0]
[null,{"$f":"IF(DD_URück1=MasterData!$E$3,\"No\",IF(OR($G$42=MasterData!$B$14),\"Yes\",\"No\"))","v":"No"},"Juni",null,null,{"$f":"IF(DD_URück1=MasterData!$E$3,IF(OR(D55=0,E55=0),0,SUM(D55:E55)/2),IF(OR($G$42=MasterData!$B$14),0,IF(OR(D55=0,E55=0),0,SUM(D55:E55)/2)))","v":0},null,"",0,null,{"$f":"IF(DD_URück2=MasterData!$E$3,\"No\",IF(OR($P$42=MasterData!$B$14),\"Yes\",\"No\"))","v":"No"},"Juni",null,null,{"$f":"IF(DD_URück2=MasterData!$E$3,IF(OR(M55=0,N55=0),0,SUM(M55:N55)/2),IF(OR($P$42=MasterData!$B$14),0,IF(OR(M55=0,N55=0),0,SUM(M55:N55)/2)))","v":0},null,"",0]
[null,null,null,null,null,"Subtotal",null,"Subtotal",null,null,null,null,null,null,"Subtotal",null,"Subtotal"]
[null,null,null,null,null,{"$f":"SUMIF(H50:H55,\"<0\",F50:F55)","v":0},null,{"$f":"SUM(H50:H55)","v":0},null,null,null,null,null,null,{"$f":"SUMIF(Q50:Q55,\"<0\",O50:O55)","v":0},null,{"$f":"SUM(Q50:Q55)","v":0}]
[]
[null,null,"Auf welche behördlich angeordneten Massnahmen zur Bekämpfung der Covid-19-Epidemie ist der Umsatzrückgang bzw. die Schliessungstage zurückzuführen? [Max. 500 Zeichen]",null,"[Textfeld; freie Eingabe; maximal 500 Zeichen]",null,null,null,null,null,null,"Auf welche behördlich angeordneten Massnahmen zur Bekämpfung der Covid-19-Epidemie ist der Umsatzrückgang bzw. die Schliessungstage zurückzuführen? [Max. 500 Zeichen]",null,"[Textfeld; freie Eingabe; maximal 500 Zeichen]"]
[null,null,"Legen Sie nachvollziehbar dar, weshalb der Umsatzrückgang auf diese Massnahmen zurückzuführen ist. [Max. 500 Zeichen] - Gilt nicht für Unternehmen bzw. Sparten, die aufgrund Massnahmen des Bundes oder der Kantone zur Eindämmung der Covid-19-Epidemie ihren Betrieb zwischen dem 1. November 2020 und dem 30. Juni 2021 für mindestens 40 Tage schliessen müssen (Art. 5b Covid-19-Härtefallverordnung).",null,"[Textfeld; freie Eingabe; maximal 500 Zeichen]",null,null,null,null,null,null,"Legen Sie nachvollziehbar dar, weshalb der Umsatzrückgang auf diese Massnahmen zurückzuführen ist. [Max. 500 Zeichen] - Gilt nicht für Unternehmen bzw. Sparten, die aufgrund Massnahmen des Bundes oder der Kantone zur Eindämmung der Covid-19-Epidemie ihren Betrieb zwischen dem 1. November 2020 und dem 30. Juni 2021 für mindestens 40 Tage schliessen müssen (Art. 5b Covid-19-Härtefallverordnung).",null,"[Textfeld; freie Eingabe; maximal 500 Zeichen]"]
[]
[null,null,"Bemessung nicht rückzahlbarer Beitrag nach Art. 8b Covid-19-Härtefallverordnung",null,null,null,null,null,null,null,null,"Bemessung nicht rückzahlbarer Beitrag nach Art. 8b Covid-19-Härtefallverordnung"]
[null,null,{"$f":"IF(DropdownSparte=MasterData!D3,MasterData!E28,MasterData!E29)","v":"Referenzumsatz 2018/2019 INSGESAMT - Gesamtunternehmen (Fr.)"},null,null,null,{"$f":"SUM(G30,F57)","v":0},null,null,null,null,"Referenzumsatz 2018/2019 INSGESAMT - Sparte 2 (in Fr.)",null,null,null,{"$f":"SUM(P30,O57)","v":0}]
[null,null,{"$f":"IF(DropdownSparte=MasterData!D3,MasterData!B28,MasterData!B29)","v":"Umsatzrückgang 2020/2021 INSGESAMT - Gesamtunternehmen (Fr.)"},null,null,null,{"$f":"IF(DD_URück1=MasterData!$E$3,SUM(G38,H57),SUM(G44,H57))","v":0},null,null,null,null,"Umsatzrückgang 2020/2021 INSGESAMT - Sparte 2 (in Fr.)",null,null,null,{"$f":"IF(DD_URück2=MasterData!$E$3,SUM(P38,Q57),SUM(P44,Q57))","v":0}]
[null,null,{"$f":"IF(DropdownSparte=MasterData!D3,MasterData!C28,MasterData!C29)","v":"Umsatzrückgang 2020/2021 INSGESAMT - Gesamtunternehmen (%)"},null,null,null,{"$f":"IFERROR(G64/G63,0)","v":0},null,null,null,null,"Umsatzrückgang 2020/2021 INSGESAMT - Sparte 2 (%)",null,null,null,{"$f":"IFERROR(P64/P63,0)","v":0}]
[null,null,"Fixkostenanteil (%)",null,null,null,{"$f":"G24","v":0.25},null,null,null,null,"Fixkostenanteil (%)",null,null,null,{"$f":"P24","v":0.25}]
[null,null,{"$f":"IF(DropdownSparte=MasterData!D3,MasterData!D28,MasterData!D29)","v":"Berechneter nicht rückzahlbarer Beitrag gemäss Art. 8b Covid-19-Härtefallverordnung - Gesamtunternehmen (Fr.)"},null,null,null,{"$f":"IF(G64*G66*-1>30%*G30,30%*G30,G64*G66*-1)","v":0},null,null,null,null,"Berechneter nicht rückzahlbarer Beitrag gemäss Art. 8b Covid-19-Härtefallverordnung - Sparte 2 (in Fr.)",null,null,null,{"$f":"IF(P64*P66*-1>30%*P30,30%*P30,P64*P66*-1)","v":0}]
[]
[]
[null,null,"Referenzumsatz 2018/2019 INSGESAMT Sparte 1 + Sparte 2",null,null,null,{"$f":"SUM(G63,P63)","v":0}]
[null,null,"Umsatzrückgang 2020/2021 INSGESAMT Sparte 1 + Sparte 2 (Fr.)",null,null,null,{"$f":"SUM(G64,P64)","v":0}]
[null,null,"Umsatzrückgang 2020/2021 INSGESAMT Sparte 1 + Sparte 2 (%)",null,null,null,{"$f":"IFERROR(G71/G70,0)","v":0}]
[null,null,"Berechneter nicht rückzahlbarer Beitrag gemäss Art. 8b \nCovid-19-Härtefallverordnung INSGESAMT Sparte 1 + Sparte 2 (Fr.)",null,null,null,{"$f":"IF(G67+P67>30%*SUM(G30,P30),30%*SUM(G30,P30),G67+P67)","v":0}]
[]
[null,null,{"$f":"IF(DropdownSparte=MasterData!D3,MasterData!B33,MasterData!B34)","v":"Zeitraum Umsatzrückgang (von - bis)"},null,null,null,{"$f":"IF(DD_URück1=\"K - Kalenderjahr 2020\",43831,VALUE(LEFT(G42,FIND(\" -\",G42))))","v":"2020-01-01"},{"$f":"MAX(IF(G50:G55>0,EOMONTH(44197,ROW(G50:G55)-50),0),IF(DD_URück1=\"K - Kalenderjahr 2020\",44196,EOMONTH(VALUE(MID(G42,FIND(\"-\",G42)+1,15)),0)))","v":"2020-12-31"},null,null,null,"Sparte 2 - Zeitraum Umsatzrückgang (von - bis)",null,null,null,{"$f":"IF(DD_URück1=\"K - Kalenderjahr 2020\",43831,VALUE(LEFT(P42,FIND(\" -\",P42))))","v":"2020-01-01"},{"$f":"MAX(IF(P50:P55>0,EOMONTH(44197,ROW(P50:P55)-50),0),IF(DD_URück1=\"K - Kalenderjahr 2020\",44196,EOMONTH(VALUE(MID(P42,FIND(\"-\",P42)+1,15)),0)))","v":"2020-12-31"}]
[null,null,null,null,null,null,{"$f":"DATEDIF(G75,H75+1,\"m\")","v":12},"Monate",null,null,null,null,null,null,null,{"$f":"DATEDIF(P75,Q75+1,\"m\")","v":12},"Monate"]

{"sheet":"5. Kostennachweis","index":4,"n_rows":82,"n_cols":8,"rows_kept":82,"cut":false,"hidden":false,"merged":[[81,1,81,3],[79,1,79,3],[80,1,80,3],[64,1,64,3],[78,1,78,3],[77,1,77,3],[5,1,5,4],[6,1,6,4],[7,1,7,4],[3,1,3,4],[4,1,4,4],[55,1,55,5],[57,1,60,1],[11,6,11,7],[14,1,16,1],[36,1,38,1],[23,1,26,1],[17,1,22,1],[29,1,34,1],[53,1,53,2],[11,1,11,5],[42,1,42,2],[45,1,45,5],[47,1,50,1],[39,1,41,1]]}
[]
[null,"5. Kostennachweis"]
[]
[null,"(1) Warum Kostennachweis? Gemäss §4 Covid-19-ZBG dürfen die Staatsbeiträge höchstens die ungedeckten Kosten decken und nicht zu einem Gewinn führen. Um dieses Anforderungskriterium zu überprüfen, sind die ungedeckten Kosten und das kumulierte Ergebnis Kalenderjahr 2020 + 1. Halbjahr 2021 des Gesamtunternehmens im vorliegenden Kostennachweis auszuweisen und mit der Erfolgsrechnung zu belegen."]
[null,"(2) Relevante Periode Fixkosten: Fixkosten können für die Monate im Zeitraum zwischen März 2020 und Juni 2021 geltend gemacht werden, für die Umsatzrückgang ggü. Ø18/19 geltend gemacht wird. Die für Sie relevante Periode wird Ihnen oberhalb Tabelle 1 angezeigt."]
[null,"(3) Bei Spartenanmeldung: Falls Sie eine oder zwei Sparten anmelden, sind die im Tabellen 1 - 3 geltend gemachten Zahlen entsprechend anteilig für die Sparte(n) auszuweisen."]
[null,"(4) Zusammenhang mit ER: Nummerierte Verweise auf Positionen in der ER halten Sie in der Spalte «Referenz-Nr.» fest. Im Kommentarfeld zur jeweiligen Kosten-Unterkategorie ist der Zusammenhang mit der ER genauer beschreiben (z.B. wo in der ER ist diese Kostenposition zu finden? Wie erklären sich etwaige Diskrepanzen?)."]
[null,"(5) Abweichung zu Ø18/19: Falls eine Kosten-Unterkategorie auf 12 Monate betrachtet um mehr als 5% höher ist als die entsprechende Kostenposition im Ø18/19, ist dies im Kommentarfeld zu begründen."]
[]
[null,"Relevante Periode Fixkosten:","2020-03-01","bis",{"$f":"IF(DropdownSparte=MasterData!D5,MAX('4. Umsatzrückgang'!H75,'4. Umsatzrückgang'!Q75),'4. Umsatzrückgang'!H75)","v":"2020-12-31"}]
[]
[null,"Tabelle 1: Fixkostennachweis in relevanter Periode",null,null,null,null,"Prüfurteil"]
[null,"Kategorie","Unterkategorie","in Franken","Referenz-Nr.","Kommentar","Festgestellter Betrag in Franken","Kommentar"]
[null,"1 Personalaufwand","1.1 Durch Kurzarbeitsentschädigung und Corona-Erwerbsersatz nicht gedeckter Personalaufwand (z.B. ungedeckter Sozialversicherungsaufwand)",null,null,null,2500000]
[null,"2 Leasing-Raten","2.1 Für Einrichtungen und Anlagen"]
[null,null,"2.2 Für Firmenfahrzeuge"]
[null,null,"2.3 Für Informatik"]
[null,"3 Immobilienkosten","3.1 Mieten"]
[null,null,"3.2 Nebenkosten"]
[null,null,"3.3 Strom/Wasser"]
[null,null,"3.4 Heizkosten"]
[null,null,"3.5 Reinigung"]
[null,null,"3.6 Sicherheit"]
[null,"4 Abgaben und Gebühren","4.1 Abfallgebühren"]
[null,null,"4.2 Patente, Nutzungsrechte"]
[null,null,"4.3 Strassenverkehrsabgaben Firmenfahrzeuge"]
[null,null,"4.4 Andere"]
[null,"5 Unterhalt","5.5 Fixkosten für Unterhalt"]
[null,"6 Versicherungen","6.1 Versicherungen (Feuer/Gebäude, Sachversicherungen, Haftpflicht, Betriebsausfall, Rechtschutz, Firmenfahrzeuge)"]
[null,"7 Verwaltungs- und Informatikaufwand","7.1 Telefon"]
[null,null,"7.2 Internet"]
[null,null,"7.3 Mitgliedsbeiträge"]
[null,null,"7.4 Treuhänder-Honorare - ordentliche Mandate"]
[null,null,"7.5 Informatik-Lizenzgebühren"]
[null,null,"7.6 Kopierer/Drucker"]
[null,"8 Werbekosten","8.1 Kosten für bestehende Verträge"]
[null,"9 Finanzkosten","9.1 Zinsen für bestehende Darlehen (z.B. Hypothekarzinsen)"]
[null,null,"9.2 Regelmässige, vertragliche Amortisationen für Darlehen auf Sachanlagen"]
[null,null,"9.3 Andere"]
[null,"10 Weiterer cashwirksamer Aufwand","10.1 Andere [Bitte beschreiben]"]
[null,null,"10.2 Andere [Bitte beschreiben]"]
[null,null,"10.3 Andere [Bitte beschreiben]"]
[null,"Angemeldete Fixkosten",null,{"$f":"SUM(D14:D42)","v":0}]
[]
[]
[null,"Tabelle 2: Cashwirksame Einmalkosten"]
[null,"Kategorie","Unterkategorie","in Franken","Referenz-Nr.","Kommentar"]
[null,"11 Einmaliger cashwirksamer Aufwand zwischen\n1. März 2020 und 30. Juni 2021 aufgrund behördlicher Massnahmen zur Bekämpfung von Covid-19","11.1 Warenverfall (z.B. Sortimentsabschreibung)"]
[null,null,"11.2 Corona-Auflagen (z.B. Plexiglas-Wände zwischen Tischen)"]
[null,null,"11.3 Andere [Bitte beschreiben]"]
[null,null,"11.4 Andere [Bitte beschreiben]"]
[null,"Angemeldete Einmalkosten",null,{"$f":"SUM(D48:D51)","v":0}]
[]
[null,"Ungedeckte Kosten\n(Fixkosten * Umsatzrückgang INSGESAMT (%) *-1 + Einmalkosten)",null,{"$f":"IF('4. Umsatzrückgang'!G16=MasterData!D5,'5. Kostennachweis'!D43*'4. Umsatzrückgang'!G72*-1+'5. Kostennachweis'!D52,'5. Kostennachweis'!D43*'4. Umsatzrückgang'!G65*-1+'5. Kostennachweis'!D52)","v":0}]
[]
[null,"Tabelle 3: Beiträge von Dritten für Covid-19 bedingte Schäden"]
[null,"Kategorie","Unterkategorie","in Franken","Referenz-Nr.","Kommentar"]
[null,"12 Beiträge von Dritten","12.1 Mieterlasse durch Staat bzw. Private"]
[null,null,"12.2 Auszahlung Pandemieversicherung"]
[null,null,"12.3 Andere [Bitte beschreiben]"]
[null,null,"12.4 Andere [Bitte beschreiben]"]
[null,"Angemeldete Beiträge Dritter",null,{"$f":"SUM(D58:D61)","v":0}]
[]
[]
[null,"Tabelle 4: Kumulierte Ergebnisse des GESAMTUNTERNEHMENS* 1. Januar 2020 bis 30. Juni 2021"]
[null,"Periode","(in Franken)","Kommentar"]
[null,"Jahresergebnis nach Steuern Kalenderjahr 2020"]
[null,"Monatsergebnis Januar 2021"]
[null,"Monatsergebnis Februar 2021"]
[null,"Monatsergebnis März 2021"]
[null,"Monatsergebnis April 2021"]
[null,"Monatsergebnis Mai 2021"]
[null,"Monatsergebnis Juni 2021"]
[null,"Kumulierte Ergebnisse Gesamtunternehmen 2020/2021H1",{"$f":"SUM(C67:C73)","v":0}]
[]
[null,"* Auch bei Spartenanmeldung sind in der obigen Tabelle die Ergebnisse des GESAMTUNTERNEHMENS anzugeben."]
[]
[null,"Tabelle 5: Antrag nicht rückzahlbarer Beitrag"]
[null,"(#1) Gemäss § 4 Abs. 1 Covid-19-ZBG dürfen die Staatsbeiträge höchstens die ungedeckten Kosten decken und nicht zu einem Gewinn führen. Im Rahmen der Gesuchprüfung wird der gemäss Art. 8b Covid-19-Härtefallverordnung berechnete Beitrag (Umsatzrückgang × Fixkostenanteil) mit den ungedeckten Kosten und den kumulierten Ergebnissen verglichen und - falls nötig - gekürzt, um eine Überentschädigung zu vermeiden."]
[null,"(#2) Die zur Verfügung stehenden Mittel aus der Bundesratsreserve sind begrenzt. Sollten die ermittelten Beiträge die Mittel übersteigen, wird eine proportionale Kürzung vorgenommen. "]
[null,"(#3) Vom jeweils gemäss #1 ermittelten Beitrag wird bis zum Zeitpunkt der Rechtskraft der Verfügungen aller gesuchstellenden Unternehmen derjenige Beitrag ausbezahlt, der sich ergäbe, wenn die Verfügungen zu allen gekürzten bzw. abgelehnten Gesuchen im Rechtsmittelverfahren erfolgreich angefochten würden und der Kanton die entsprechenden Beiträge nachzahlen müsste. Je grösser der Unterschied zwischen den von den Unternehmen beantragten und den gemäss  #1 ermittelten Beiträgen, desto kleiner wird die anfängliche Auszahlungsquote pro Gesuch ausfallen."]
[null,"(#4) Der gemäss Art. 8b Covid-19-Härtefallverordnung berechnete nicht rückzahlbare Beitrag ist als Obergrenze zu verstehen. Falls die ungedeckten Kosten und/oder die Verluste aus den kumulierten Ergebnissen kleiner sind als der berechnete Beitrag gemäss Art. 8b Covid-19-Härtefallverordnung, empfehlen wir Ihnen, den kleinsten der drei Werte als nicht rückzahlbaren Beitrag zu beantragen und dies in der separaten Gesuchzusammenfassung entsprechend festzuhalten. Die in der Gesuchzusammenfassung im Feld «beantragter nicht rückzahlbarer Beitrag (Fr.)» angegebene Zahl gilt als beantragter nicht rückzahlbarer Beitrag der Zuteilungsrunde 4b."]

{"sheet":"6. Belegliste","index":5,"n_rows":18,"n_cols":2,"rows_kept":18,"cut":false,"hidden":false,"merged":[]}
[]
[null,"6. Belegliste"]
[null,"(1) Die aktuell gültige Belegliste ist auf der Webseite zh.ch/haertefall einsehbar."]
[null,"(2) Die eingereichten Belege sind nachvollziehbar zu bezeichnen (z.B. «Monatliche ER Februar 2021»)."]
[null,"(3) Nicht nachvollziehbare Dateinamen (z.B. «Scan 0129scskdi») sind nicht zulässig. Missachtung dieser Vorgabe kann zur Ablehnung Ihres Gesuchs führen."]
[null,"(4) Ordnen Sie Belege sinnvoll und achten Sie darauf, dass die Seiten in einem Dokument alle die gleiche Ausrichtung haben."]
[]
[null,"Die gesuchstellenden Unternehmen müssen folgende Belege einreichen:"]
[null,"Unterschriebener Scan des gültigen Passes (beide Seiten mit Foto und Unterschrift) oder der ID (Vorder- und Rückseite) aller gesuchstellenden Personen"]
[null,"Ausgefülltes Gesuchformular als .xlsm-Datei und als .pdf-Datei (gesamte Arbeitsmappe, unterschrieben)"]
[null,"Gesuchzusammenfassung und Selbstdeklaration (unterschrieben)"]
[null,"Revidierte Jahresrechnungen 2018, 2019 und 2020, Bilanz und Erfolgsrechnung sowie Anhang (unterschrieben)"]
[null,"Erfolgsrechnung für die spätere 12 Monats-Periode, falls ein Umsatzrückgang über 12 Monate nach Art. 5 1bis Covid-19-Härtefallverordnung geltend gemacht wird (unterschrieben)"]
[null,"Monatliche Erfolgsrechnungen für Januar - Juni 2018, Januar - Juni 2019, sowie Januar 2020 – Juni 2021 (unterschrieben)"]
[null,"Spartenaufteilung 2018, 2019 und 2020 (Aufwand und Ertrag) des Gesamtunternehmens im Falle einer Spartenanmeldung gemäss Art. 2a der Covid-19-Härtefallverordnung (unterschrieben)"]
[null,"Spartenaufteilung Januar bis Juni 2021 (Aufwand und Ertrag) des Gesamtunternehmens im Falle einer Spartenanmeldung gemäss Art. 2a der Covid-19-Härtefallverordnung (unterschrieben)"]
[null,"Betreibungsregisterauszug des gesuchstellenden Unternehmens (nicht älter als zwei Wochen vor der Gesucheinreichung). Im Falle von Sitzverlegungen im Jahr 2020 auch Betreibungsregisterauszüge für die vorherigen Unternehmenssitze ab 2018"]
[null,"Auflistung aller zwischen 1. Januar 2020 und 30. Juni 2021 getätigten Rückstellungen (unterschrieben)"]

{"sheet":"MasterData","index":6,"n_rows":34,"n_cols":7,"rows_kept":34,"cut":false,"hidden":true,"merged":[]}
[]
[null,"Fixkostenanteile","Ja/Nein","Unternehmensteil","Umsatzrückgang 12 Monate"]
[null,0.08,"Ja","Gesamtunternehmen","K - Kalenderjahr 2020"]
[null,0.15,"Nein","1 Sparte","S - Spätere 12 Monats-Periode"]
[null,0.25,null,"2 Sparten"]
[]
[]
[null,"Dropdown spätere 12 Monats-Periode","Sektorisierung","Rechtsform"]
[null,"Februar 2020 - Januar 2021","Private Unternehmung","Einzelunternehmen"]
[null,"März 2020 - Februar 2021","Private Organisation ohne Erwerbszweck","Einfache Gesellschaft"]
[null,"April 2020 - März 2021",null,"Kollektivgesellschaft"]
[null,"Mai 2020 - April 2021",null,"Kommanditgesellschaft"]
[null,"Juni 2020 - Mai 2021",null,"Aktiengesellschaft"]
[null,"Juli 2020 - Juni 2021",null,"Kommandit-Aktiengesellschaft"]
[null,null,null,"Gesellschaft mit beschränkter Haftung"]
[null,null,null,"Genossenschaft"]
[null,null,null,"Verein"]
[null,null,null,"Stiftung"]
[]
[]
[]
[]
[null,"Textfeld behördliche Schliessung","Textfeld Umsatz 2018","Textfeld Umsatz 2019","Textfeld Durchschnitt 2018/2019","Textfeld Umsatz Kalenderjahr 2020","Textfeld Umsatz Kalenderjahr 2021"]
[null,"Musste Ihr Gesamtunternehmen aufgrund behördlicher Massnahmen zur Eindämmung der Covid-19-Epidemie den Betrieb zwischen dem 1. November 2020 und dem 30. Juni 2021 für insgesamt mindestens 40 Tage schliessen?","Angemeldeter Jahresumsatz 2018 - Gesamtunternehmen (Fr.)","Angemeldeter Jahresumsatz 2019 - Gesamtunternehmen (Fr.)","Durchschnittlicher angemeldeter Jahresumsatz 2018/2019 - Gesamtunternehmen (Fr.)","Umsatz Kalenderjahr 2020 - Gesamtunternehmen (Fr.)","Umsatz spätere 12 Monats-Periode - Gesamtunternehmen (Fr.)"]
[null,"Musste die Sparte 1 aufgrund behördlicher Massnahmen zur Eindämmung der Covid-19-Epidemie den Betrieb zwischen dem 1. November 2020 und dem 30. Juni 2021 für insgesamt mindestens 40 Tage schliessen?","Angemeldeter Jahresumsatz 2018 - Sparte 1 (Fr.)","Angemeldeter Jahresumsatz 2019 - Sparte 1 (Fr.)","Durchschnittlicher angemeldeter Jahresumsatz 2018/2019 - Sparte 1 (Fr.)","Umsatz Kalenderjahr 2020 - Sparte 1 (Fr.)","Umsatz spätere 12 Monats-Periode - Sparte 1 (Fr.)"]
[]
[null,"Textfeld Umsatzrückgang total","Text U-Rück total","Text NiRüBe","Text Durchschnittsumsatz 2018/2019 total"]
[null,"Umsatzrückgang 2020/2021 INSGESAMT - Gesamtunternehmen (Fr.)","Umsatzrückgang 2020/2021 INSGESAMT - Gesamtunternehmen (%)","Berechneter nicht rückzahlbarer Beitrag gemäss Art. 8b Covid-19-Härtefallverordnung - Gesamtunternehmen (Fr.)","Referenzumsatz 2018/2019 INSGESAMT - Gesamtunternehmen (Fr.)"]
[null,"Umsatzrückgang 2020/2021 INSGESAMT - Sparte 1 (Fr.)","Umsatzrückgang 2020/2021 INSGESAMT - Sparte 1 (%)","Berechneter nicht rückzahlbarer Beitrag gemäss Art. 8b Covid-19-Härtefallverordnung - Sparte 1 (Fr.)","Referenzumsatz 2018/2019 INSGESAMT - Sparte 1 (Fr.)"]
[]
[]
[null,"Textfeld Umsatzrückgang total"]
[null,"Zeitraum Umsatzrückgang (von - bis)"]
[null,"Sparte 1 - Zeitraum Umsatzrückgang (von - bis)"]